bitfinex/quotes_BTCUSD_20240613
["timestamp","ask_amount","ask_price","bid_price","bid_amount"]
[1718297771884,1.9e-07,66856.0,66855.0,1.93773256]
[1718297772373,9.7e-07,66858.0,66857.0,0.3097]
[1718297772585,3.1e-07,66859.0,66858.0,0.44727]
[1718297772755,3.1e-07,66859.0,66858.0,1.25351913]
[1718297772964,3.1e-07,66859.0,66858.0,1.36707475]
[1718297773305,3.1e-07,66859.0,66858.0,1.26707475]
[1718297773732,3.1e-07,66859.0,66858.0,1.83844381]
[1718297773965,0.00100031,66859.0,66858.0,1.80661362]
[1718297774170,0.00100031,66859.0,66858.0,1.91729051]
[1718297774367,3.1e-07,66859.0,66858.0,1.95661362]
[1718297774512,0.03504854,66861.0,66860.0,1.578162]
[1718297774720,0.03504854,66861.0,66860.0,2.25804622]
[1718297774886,0.03504854,66861.0,66860.0,2.86570922]
[1718297775082,0.03504854,66861.0,66860.0,2.69146278]
[1718297775322,0.03504854,66861.0,66860.0,2.65546278]
[1718297775485,0.03504854,66861.0,66860.0,2.00251678]
[1718297775687,0.03504854,66861.0,66860.0,2.04581138]
[1718297775883,0.03504854,66861.0,66860.0,1.74667938]
[1718297776087,0.03604854,66861.0,66860.0,1.75039001]
[1718297776339,0.03604854,66861.0,66860.0,1.44125801]
[1718297776644,0.03704854,66861.0,66860.0,2.00142643]
[1718297776890,0.03704854,66861.0,66860.0,1.97718224]
[1718297777059,0.03604854,66861.0,66860.0,2.00745114]
[1718297777296,0.03604854,66861.0,66860.0,1.98742643]
[1718297777766,0.03604854,66861.0,66860.0,1.75038264]
[1718297778112,0.03604854,66861.0,66860.0,2.00744377]
[1718297778340,0.03504854,66861.0,66860.0,1.99944377]
[1718297778576,0.03604854,66861.0,66860.0,1.99461499]
[1718297778780,0.03604854,66861.0,66860.0,1.96818523]
[1718297778991,0.03604854,66861.0,66860.0,1.66805323]
[1718297779242,0.03604854,66861.0,66860.0,1.75438298]
[1718297779453,0.03704854,66861.0,66860.0,2.02444411]
[1718297779663,0.03704854,66861.0,66860.0,1.95035556]
[1718297779664,0.03604854,66861.0,66860.0,1.95035556]
[1718297779892,0.03504854,66861.0,66860.0,1.21346243]
[1718297780115,0.03504854,66861.0,66860.0,1.18339156]
[1718297780116,0.03604854,66861.0,66860.0,1.18339156]
[1718297780331,0.03604854,66861.0,66860.0,1.50552356]
[1718297780570,0.03699454,66861.0,66860.0,1.50552356]
[1718297780811,0.03699454,66861.0,66860.0,1.80465556]
[1718297781027,0.03699454,66861.0,66860.0,1.50552356]
[1718297781253,0.03699454,66861.0,66860.0,1.52335323]
[1718297781559,0.03699454,66861.0,66860.0,1.0711425]
[1718297781813,0.03699454,66861.0,66860.0,1.32820363]
[1718297782052,0.03699454,66861.0,66860.0,1.3460333]
[1718297782289,0.03699454,66861.0,66860.0,1.3330333]
[1718297782518,0.03599454,66861.0,66860.0,1.3210333]
[1718297782734,0.03699454,66861.0,66860.0,1.3320333]
[1718297783218,0.03699454,66861.0,66860.0,1.1350333]
[1718297783447,0.03699454,66861.0,66860.0,0.29871394]
[1718297783678,0.03799454,66861.0,66860.0,0.226566]
[1718297783897,0.03699454,66861.0,66860.0,0.242566]
[1718297784361,0.03799454,66861.0,66860.0,0.256566]
[1718297784791,0.03799454,66861.0,66860.0,0.356566]
[1718297785708,0.03699454,66861.0,66860.0,0.342566]
[1718297786361,0.03699454,66861.0,66860.0,0.312566]
[1718297786549,0.03699454,66861.0,66860.0,0.323566]
[1718297787025,0.03599454,66861.0,66860.0,0.329566]
[1718297787446,0.03699454,66861.0,66860.0,0.337566]
[1718297787661,0.03699454,66861.0,66860.0,0.158]
[1718297787872,0.49405854,66861.0,66860.0,0.008]
[1718297788089,0.34449454,66861.0,66860.0,0.007]
[1718297788744,0.34349454,66861.0,66859.0,0.05]
[1718297789176,0.34349454,66861.0,66860.0,0.004]
[1718297789392,0.34349454,66861.0,66859.0,0.15]
[1718297789814,0.34549454,66861.0,66860.0,0.149566]
[1718297790031,0.34549454,66861.0,66860.0,0.1]
[1718297790246,0.34349454,66861.0,66860.0,0.1]
[1718297790676,0.34549454,66861.0,66860.0,0.1]
[1718297791301,0.34549454,66861.0,66859.0,0.15]
[1718297791934,0.34349454,66861.0,66859.0,0.15]
[1718297792355,0.34549454,66861.0,66860.0,0.149566]
[1718297792575,0.34549454,66861.0,66860.0,0.92783]
[1718297792576,0.03799454,66861.0,66860.0,0.92783]
[1718297792793,0.03599454,66861.0,66860.0,1.07907432]
[1718297793034,0.03599454,66861.0,66860.0,1.89508193]
[1718297793242,0.03599454,66861.0,66860.0,1.88508193]
[1718297793243,0.03699454,66861.0,66860.0,1.88508193]
[1718297793468,0.03699454,66861.0,66860.0,1.63952642]
[1718297793644,0.03899454,66861.0,66860.0,1.40580649]
[1718297793891,0.03899454,66861.0,66860.0,0.89527449]
[1718297794106,0.03899454,66861.0,66860.0,0.95027449]
[1718297794369,0.03599454,66861.0,66860.0,0.828698]
[1718297794605,0.03599454,66861.0,66860.0,0.907698]
[1718297794815,0.03599454,66861.0,66860.0,1.20683]
[1718297795032,0.03599454,66861.0,66860.0,1.12883]
[1718297795258,0.03599454,66861.0,66860.0,1.13283]
[1718297795467,0.03599454,66861.0,66860.0,1.12883]
[1718297795691,0.03599454,66861.0,66860.0,1.168072]
[1718297795907,0.03599454,66861.0,66860.0,1.172072]
[1718297797787,0.03599454,66861.0,66860.0,1.471204]
[1718297798000,0.03599454,66861.0,66860.0,1.62552393]
[1718297798205,0.03599454,66861.0,66860.0,1.78402393]
[1718297798823,0.03599454,66861.0,66860.0,1.48489193]
[1718297799243,0.03599454,66861.0,66860.0,0.732308]
[1718297799451,0.03599454,66861.0,66860.0,0.373808]
[1718297800099,0.03599454,66861.0,66860.0,0.372808]
[1718297800301,0.03599454,66861.0,66860.0,0.368808]
[1718297800507,0.03599454,66861.0,66860.0,0.369808]
[1718297800920,0.03599454,66861.0,66860.0,0.300566]
[1718297801746,0.03599454,66861.0,66860.0,0.304566]
[1718297801921,0.03599454,66861.0,66860.0,0.300566]
[1718297802185,0.03599454,66861.0,66860.0,0.299566]
[1718297802414,0.03899454,66861.0,66860.0,0.299566]
[1718297802635,0.03799454,66861.0,66860.0,0.15]
[1718297802843,0.03799454,66861.0,66860.0,0.299566]
[1718297803056,0.03699454,66861.0,66860.0,0.299566]
[1718297803517,0.03599454,66861.0,66860.0,0.15]
[1718297803739,0.17409454,66861.0,66860.0,0.01785343]
[1718297803952,0.17609454,66861.0,66859.0,0.05]
[1718297804165,0.17609454,66861.0,66859.0,0.15]
[1718297804790,0.17609454,66861.0,66859.0,0.299568]
[1718297804991,0.17809454,66861.0,66859.0,0.299568]
[1718297805307,0.17409454,66861.0,66859.0,0.299568]
[1718297805509,0.17409454,66861.0,66860.0,0.149566]
[1718297805716,0.17609454,66861.0,66860.0,0.1]
[1718297806135,0.17409454,66861.0,66860.0,0.1]
[1718297806350,0.34579454,66861.0,66860.0,0.1]
[1718297806772,0.34779454,66861.0,66857.0,0.06785343]
[1718297806991,0.34779454,66861.0,66858.0,0.05]
[1718297807197,0.34579454,66861.0,66858.0,0.05]
[1718297807414,0.34579454,66861.0,66858.0,0.1]
[1718297807624,0.3136,66859.0,66858.0,0.1]
[1718297807830,0.3136,66859.0,66854.0,0.00086]
[1718297807831,0.149577,66855.0,66854.0,0.00086]
[1718297808037,0.463177,66855.0,66854.0,0.00086]
[1718297808626,0.3136,66855.0,66854.0,0.00086]
[1718297809475,0.3156,66855.0,66854.0,0.00186]
[1718297809719,0.3196,66855.0,66854.0,0.00186]
[1718297810330,0.469177,66855.0,66854.0,0.00186]
[1718297811470,0.3196,66855.0,66854.0,0.00186]
[1718297811881,0.3196,66855.0,66854.0,0.10186]
[1718297812083,0.61349693,66855.0,66854.0,0.10186]
[1718297812585,0.60749693,66855.0,66854.0,0.10086]
[1718297812989,0.45791993,66855.0,66854.0,0.00386]
[1718297813153,0.60749693,66855.0,66854.0,0.00086]
[1718297813698,0.45791993,66855.0,66854.0,0.00086]
[1718297814720,0.46191993,66855.0,66854.0,0.00086]
[1718297814925,0.46391993,66855.0,66854.0,0.00186]
[1718297815766,0.1814,66855.0,66854.0,0.151439]
[1718297815968,0.006,66855.0,66854.0,0.929757]
[1718297816096,0.006,66855.0,66854.0,1.067657]
[1718297816534,0.002,66855.0,66854.0,1.067657]
[1718297816866,0.03599454,66861.0,66860.0,0.199566]
[1718297817004,0.03599454,66861.0,66860.0,0.628698]
[1718297818019,0.03599454,66861.0,66860.0,0.67313054]
[1718297818223,0.03599454,66861.0,66860.0,0.67311847]
[1718297818638,0.03584376,66861.0,66860.0,0.333566]
[1718297819211,0.03584376,66861.0,66860.0,0.300566]
[1718297819388,0.03584376,66861.0,66860.0,0.304566]
[1718297819627,0.03584376,66861.0,66860.0,0.334566]
[1718297819962,0.03584376,66861.0,66860.0,0.304566]
[1718297820171,0.03584376,66861.0,66860.0,0.303566]
[1718297820370,0.03584376,66861.0,66860.0,0.333566]
[1718297820591,0.03584376,66861.0,66860.0,0.154]
[1718297820817,0.03584376,66861.0,66860.0,0.054]
[1718297820969,0.03584376,66861.0,66860.0,0.05]
[1718297821180,0.03584376,66861.0,66860.0,0.199566]
[1718297821393,0.03584376,66861.0,66860.0,0.303566]
[1718297821904,0.03584376,66861.0,66860.0,0.299566]
[1718297822110,0.03584376,66861.0,66860.0,0.303566]
[1718297822584,0.33954376,66861.0,66860.0,0.151]
[1718297822809,0.63342769,66861.0,66860.0,0.005]
[1718297823022,0.63342769,66861.0,66860.0,0.004]
[1718297823459,0.63342769,66861.0,66860.0,0.005]
[1718297824291,0.03584376,66861.0,66860.0,0.220566]
[1718297824543,0.03584376,66861.0,66860.0,0.529698]
[1718297824750,0.03584376,66861.0,66860.0,0.532698]
[1718297825049,0.03584376,66861.0,66860.0,0.528698]
[1718297825255,0.03784376,66861.0,66860.0,0.92883]
[1718297825470,0.03884376,66861.0,66860.0,0.92883]
[1718297825687,0.03884376,66861.0,66860.0,0.97325047]
[1718297826369,0.03584376,66861.0,66860.0,0.608698]
[1718297826545,0.03584376,66861.0,66860.0,0.69560167]
[1718297826763,0.03584376,66861.0,66860.0,0.92883]
[1718297827194,0.03584376,66861.0,66860.0,0.330566]
[1718297827415,0.03584376,66861.0,66860.0,0.69645374]
[1718297827653,0.03584376,66861.0,66860.0,0.629698]
[1718297827874,0.03584376,66861.0,66860.0,0.303566]
[1718297828363,0.03584376,66861.0,66860.0,0.34508223]
[1718297828604,0.03584376,66861.0,66860.0,0.304566]
[1718297829049,0.03584376,66861.0,66860.0,0.34908223]
[1718297829251,0.03584376,66861.0,66860.0,0.19951623]
[1718297829420,0.03584376,66861.0,66860.0,0.09451623]
[1718297829848,0.03784376,66861.0,66860.0,0.09551623]
[1718297830759,0.03784376,66861.0,66860.0,0.200566]
[1718297830931,0.03784376,66861.0,66860.0,0.97334623]
[1718297831140,0.03584376,66861.0,66860.0,0.69545691]
[1718297831514,0.03884376,66861.0,66860.0,0.69545691]
[1718297831713,0.03884376,66861.0,66860.0,0.598698]
[1718297831972,0.03784376,66861.0,66860.0,0.66550097]
[1718297832120,0.03584376,66861.0,66860.0,0.66550097]
[1718297832317,0.03584376,66861.0,66860.0,1.94518193]
[1718297832563,0.03584376,66861.0,66860.0,2.16198193]
[1718297832564,0.03784376,66861.0,66860.0,2.16198193]
[1718297832759,0.03784376,66861.0,66860.0,2.53274133]
[1718297832960,0.03784376,66861.0,66860.0,2.39893398]
[1718297833119,0.03784376,66861.0,66860.0,2.29953938]
[1718297833120,0.03584376,66861.0,66860.0,2.29953938]
[1718297833322,0.03584376,66861.0,66860.0,1.80208205]
[1718297833537,0.03584376,66861.0,66860.0,1.56513]
[1718297833832,0.03584376,66861.0,66860.0,1.69868745]
[1718297833991,0.03584376,66861.0,66860.0,1.72860745]
[1718297834191,0.03584376,66861.0,66860.0,1.56513]
[1718297834368,0.03584376,66861.0,66860.0,1.56113]
[1718297834792,0.03684376,66861.0,66860.0,1.914504]
[1718297834999,0.03584376,66861.0,66860.0,1.06374]
[1718297835200,0.03584376,66861.0,66860.0,1.06274]
[1718297835398,0.03684376,66861.0,66860.0,1.375872]
[1718297835652,0.03684376,66861.0,66860.0,1.388872]
[1718297835775,0.03584376,66861.0,66860.0,1.374872]
[1718297835995,0.03584376,66861.0,66860.0,1.37080316]
[1718297836202,0.03684376,66861.0,66860.0,1.38480316]
[1718297836415,0.03684376,66861.0,66860.0,1.39780316]
[1718297837288,0.03684376,66861.0,66860.0,1.388872]
[1718297837595,0.03584376,66861.0,66860.0,1.374872]
[1718297837734,0.03584376,66861.0,66860.0,1.361872]
[1718297837935,0.03684376,66861.0,66860.0,1.375872]
[1718297838161,0.03684376,66861.0,66860.0,1.361872]
[1718297838162,0.03584376,66861.0,66860.0,1.361872]
[1718297838363,0.03584376,66861.0,66860.0,1.371872]
[1718297838710,0.03684376,66861.0,66860.0,1.685004]
[1718297838821,0.03684376,66861.0,66860.0,1.395872]
[1718297839276,0.03684376,66861.0,66860.0,1.718004]
[1718297839489,0.03684376,66861.0,66860.0,1.72693516]
[1718297839659,0.03684376,66861.0,66860.0,1.71693516]
[1718297839908,0.03684376,66861.0,66860.0,1.708004]
[1718297840123,0.03684376,66861.0,66860.0,1.71693516]
[1718297840326,0.03684376,66861.0,66860.0,1.41780316]
[1718297840524,0.03684376,66861.0,66860.0,1.42682349]
[1718297840731,0.03684376,66861.0,66860.0,1.685004]
[1718297841129,0.03684376,66861.0,66860.0,1.97002393]
[1718297841358,0.03684376,66861.0,66860.0,2.08497745]
[1718297841629,0.03684376,66861.0,66860.0,2.04290658]
[1718297842009,0.03684376,66861.0,66860.0,1.99302393]
[1718297842211,0.03684376,66861.0,66860.0,2.00194653]
[1718297842573,0.03684376,66861.0,66860.0,1.99194653]
[1718297843189,0.03684376,66861.0,66860.0,1.79714653]
[1718297843450,3.4e-07,66871.0,66870.0,0.374]
[1718297843656,3.4e-07,66871.0,66870.0,0.82826293]
[1718297843885,3.4e-07,66871.0,66870.0,1.43643693]
[1718297844099,3.4e-07,66871.0,66870.0,1.42643693]
[1718297844306,0.04814229,66881.0,66873.0,0.766011]
[1718297844307,7e-08,66874.0,66873.0,0.766011]
[1718297844524,7e-08,66874.0,66873.0,1.03333093]
[1718297844739,7e-08,66874.0,66873.0,1.17500493]
[1718297844974,7e-08,66874.0,66873.0,1.47407893]
[1718297845181,7e-08,66874.0,66873.0,1.17500493]
[1718297845390,7e-08,66874.0,66873.0,1.47407893]
[1718297845596,7e-08,66874.0,66873.0,1.56291931]
[1718297846243,7e-08,66874.0,66873.0,1.56991931]
[1718297846442,7e-08,66874.0,66873.0,1.02352538]
[1718297846816,7e-08,66874.0,66873.0,1.01652538]
[1718297847259,7e-08,66874.0,66873.0,0.927685]
[1718297848240,7e-08,66874.0,66873.0,1.00828284]
[1718297848395,7e-08,66874.0,66873.0,1.02128284]
[1718297848596,7e-08,66874.0,66873.0,1.32035684]
[1718297848798,7e-08,66874.0,66873.0,0.99428284]
[1718297849228,7e-08,66874.0,66873.0,1.02028284]
[1718297849425,7e-08,66874.0,66873.0,1.00628284]
[1718297849626,7e-08,66874.0,66873.0,1.30535684]
[1718297849823,7e-08,66874.0,66873.0,1.29335684]
[1718297850270,7e-08,66874.0,66873.0,1.00628284]
[1718297850798,7e-08,66874.0,66873.0,1.30535684]
[1718297851048,7e-08,66874.0,66873.0,1.31935684]
[1718297851252,7e-08,66874.0,66873.0,1.252759]
[1718297851418,7e-08,66874.0,66873.0,1.262759]
[1718297852031,6.6e-07,66880.0,66879.0,0.09]
[1718297852238,6.6e-07,66880.0,66879.0,1.15457389]
[1718297852443,6.6e-07,66880.0,66879.0,1.2856822]
[1718297852611,6.6e-07,66880.0,66879.0,1.49597725]
[1718297852812,6.6e-07,66880.0,66879.0,1.56575925]
[1718297853019,6.6e-07,66880.0,66879.0,1.88372657]
[1718297853194,6.6e-07,66880.0,66879.0,1.27295964]
[1718297853399,6.6e-07,66880.0,66879.0,1.145417]
[1718297853753,6.6e-07,66880.0,66879.0,1.158417]
[1718297854089,6.6e-07,66880.0,66879.0,0.83637]
[1718297854294,6.6e-07,66880.0,66879.0,0.312523]
[1718297854493,6.6e-07,66880.0,66879.0,0.9849693]
[1718297854978,6.6e-07,66880.0,66879.0,1.2710163]
[1718297855125,6.6e-07,66880.0,66879.0,1.4145163]
[1718297855466,6.6e-07,66880.0,66879.0,1.4395163]
[1718297855910,6.6e-07,66880.0,66879.0,1.4405163]
[1718297856354,6.6e-07,66880.0,66879.0,1.4505163]
[1718297856725,6.6e-07,66880.0,66879.0,1.4405163]
[1718297857074,6.6e-07,66880.0,66879.0,1.4265163]
[1718297857273,6.6e-07,66880.0,66879.0,1.4265344]
[1718297857478,6.6e-07,66880.0,66879.0,1.4405344]
[1718297857679,6.6e-07,66880.0,66879.0,1.4265344]
[1718297858087,6.6e-07,66880.0,66879.0,1.396164]
[1718297858289,6.6e-07,66880.0,66879.0,1.382164]
[1718297858712,6.6e-07,66880.0,66879.0,1.396164]
[1718297858999,0.03832433,66884.0,66883.0,0.04]
[1718297859000,2.8e-07,66884.0,66883.0,0.04]
[1718297859217,0.43295979,66905.0,66893.0,0.47596002]
[1718297859433,0.177,66903.0,66893.0,1.32824795]
[1718297859638,0.21060007,66900.0,66893.0,1.20226]
[1718297860043,0.21060007,66900.0,66893.0,1.24662938]
[1718297860440,0.21060007,66900.0,66893.0,0.389492]
[1718297860628,0.21060007,66900.0,66893.0,0.508292]
[1718297860833,0.18059425,66894.0,66893.0,0.508292]
[1718297861035,0.18059425,66894.0,66893.0,0.299492]
[1718297861237,0.18059425,66894.0,66893.0,0.85279593]
[1718297861238,0.04009425,66894.0,66893.0,0.85279593]
[1718297861467,0.04009425,66894.0,66893.0,0.88979593]
[1718297861616,0.04009425,66894.0,66893.0,1.17477993]
[1718297861833,0.04009425,66894.0,66893.0,0.329492]
[1718297862009,0.04009425,66894.0,66893.0,0.610476]
[1718297862809,0.21419425,66894.0,66893.0,0.314492]
[1718297863033,0.35469425,66894.0,66893.0,0.115]
[1718297863235,0.35469425,66894.0,66893.0,0.149492]
[1718297863432,0.35469425,66894.0,66893.0,0.249492]
[1718297863763,0.35469425,66894.0,66893.0,0.263492]
[1718297864017,0.35469425,66894.0,66893.0,0.249492]
[1718297864269,0.35469425,66894.0,66893.0,0.255492]
[1718297864473,0.35469425,66894.0,66893.0,0.11]
[1718297864674,0.35469425,66894.0,66893.0,0.106]
[1718297865942,0.1785,66891.0,66885.0,0.05]
[1718297866091,0.1785,66891.0,66890.0,0.05]
[1718297866481,0.1785,66891.0,66887.0,0.05]
[1718297867253,0.1785,66891.0,66887.0,0.1]
[1718297867479,0.1785,66891.0,66890.0,0.006]
[1718297867874,0.1785,66891.0,66886.0,0.05]
[1718297868080,0.1785,66891.0,66886.0,0.06784416]
[1718297868601,0.1785,66891.0,66886.0,0.07784416]
[1718297868798,0.1785,66891.0,66887.0,0.07215996]
[1718297869146,0.1785,66891.0,66890.0,0.498497]
[1718297869508,0.1785,66891.0,66890.0,0.299499]
[1718297869714,0.1785,66891.0,66890.0,0.31734316]
[1718297870129,0.1785,66891.0,66890.0,0.299499]
[1718297870470,0.1785,66891.0,66890.0,0.17084416]
[1718297870678,0.1785,66891.0,66890.0,0.17584416]
[1718297870867,0.1785,66891.0,66890.0,0.302499]
[1718297871371,0.1785,66891.0,66890.0,0.303499]
[1718297872084,0.1785,66891.0,66890.0,0.310499]
[1718297872493,0.1785,66891.0,66890.0,0.300499]
[1718297872694,0.1785,66891.0,66890.0,0.299499]
[1718297873120,0.1785,66891.0,66890.0,0.309499]
[1718297874222,0.1785,66891.0,66890.0,0.311499]
[1718297875242,0.1785,66891.0,66890.0,0.301499]
[1718297875451,0.1785,66891.0,66890.0,0.311499]
[1718297875639,0.1785,66891.0,66890.0,0.610497]
[1718297875851,0.1785,66891.0,66890.0,0.311499]
[1718297876518,0.1785,66891.0,66890.0,0.628497]
[1718297876729,0.1785,66891.0,66890.0,0.629497]
[1718297876935,0.04009425,66894.0,66893.0,0.528476]
[1718297877148,0.04009425,66894.0,66893.0,0.92746]
[1718297877314,0.04009425,66894.0,66893.0,0.95186723]
[1718297877575,0.04009425,66894.0,66893.0,0.97186723]
[1718297878142,0.04009425,66894.0,66893.0,0.92746]
[1718297878799,0.04009425,66894.0,66893.0,0.99407085]
[1718297879411,0.04009425,66894.0,66893.0,1.226444]
[1718297879617,0.04009425,66894.0,66893.0,0.92746]
[1718297880033,0.04009425,66894.0,66893.0,0.93846]
[1718297880439,0.04009425,66894.0,66893.0,0.94746]
[1718297880639,0.04009425,66894.0,66893.0,0.648476]
[1718297880849,0.04009425,66894.0,66893.0,0.93646]
[1718297881260,0.04009425,66894.0,66893.0,0.345492]
[1718297881505,0.04009425,66894.0,66893.0,0.39212938]
[1718297881712,0.35109425,66894.0,66893.0,0.37312938]
[1718297881913,0.35109425,66894.0,66893.0,0.635476]
[1718297882033,0.35109425,66894.0,66893.0,0.644476]
[1718297882230,0.04009425,66894.0,66893.0,1.33125847]
[1718297882459,0.04009425,66894.0,66893.0,1.46665847]
[1718297882657,0.04009425,66894.0,66893.0,1.48186209]
[1718297882938,0.04009425,66894.0,66893.0,1.373844]
[1718297883149,0.04009425,66894.0,66893.0,0.93746]
[1718297883351,0.04009425,66894.0,66893.0,0.74249221]
[1718297883564,0.04009425,66894.0,66893.0,0.75246642]
[1718297883807,0.04009425,66894.0,66893.0,0.75946642]
[1718297884229,0.04009425,66894.0,66893.0,1.16246663]
[1718297884396,0.04009425,66894.0,66893.0,0.87448263]
[1718297884638,0.04009425,66894.0,66893.0,1.17346663]
[1718297884818,0.04009425,66894.0,66893.0,1.06245042]
[1718297884965,0.04009425,66894.0,66893.0,1.07145042]
[1718297885181,0.04009425,66894.0,66893.0,1.18250998]
[1718297885687,0.04009425,66894.0,66893.0,1.17150998]
[1718297885905,0.04009425,66894.0,66893.0,1.15150998]
[1718297886119,0.34679425,66894.0,66893.0,0.47348387]
[1718297886333,0.34679425,66894.0,66893.0,0.8835494]
[1718297886509,0.34679425,66894.0,66893.0,0.8725494]
[1718297886710,0.34679425,66894.0,66893.0,0.5435654]
[1718297886913,0.35199425,66894.0,66893.0,0.29399187]
[1718297887116,0.35199425,66894.0,66893.0,0.33844045]
[1718297887319,0.35199425,66894.0,66893.0,0.26184235]
[1718297887549,0.35199425,66894.0,66893.0,0.24399187]
[1718297888020,0.35199425,66894.0,66893.0,0.23499187]
[1718297888450,0.35199425,66894.0,66893.0,0.24399187]
[1718297888861,0.35199425,66894.0,66893.0,0.23299187]
[1718297889054,0.35199425,66894.0,66893.0,0.22399187]
[1718297889260,0.35181432,66894.0,66893.0,0.23499187]
[1718297889470,0.35181432,66894.0,66893.0,0.24184235]
[1718297890101,0.35181432,66894.0,66893.0,0.30384574]
[1718297890259,0.35181432,66894.0,66893.0,0.45333774]
[1718297890854,0.35181432,66894.0,66893.0,0.30384574]
[1718297891306,0.35181432,66894.0,66893.0,0.34832555]
[1718297891516,0.35181432,66894.0,66893.0,0.49781755]
[1718297892106,0.35181432,66894.0,66893.0,0.33147507]
[1718297892865,0.35181432,66894.0,66893.0,0.47996707]
[1718297892987,0.35181432,66894.0,66893.0,0.49780261]
[1718297893193,0.35181432,66894.0,66893.0,0.43548726]
[1718297893411,0.35181432,66894.0,66893.0,0.28599526]
[1718297893917,0.35181432,66894.0,66893.0,0.30384623]
[1718297894133,0.35181432,66894.0,66893.0,0.28600926]
[1718297894391,0.35181432,66894.0,66893.0,0.35272898]
[1718297894759,0.35181432,66894.0,66893.0,0.50222098]
[1718297895511,0.35181432,66894.0,66893.0,0.50220206]
[1718297895732,0.35181432,66894.0,66893.0,0.43550126]
[1718297896294,0.35181432,66894.0,66893.0,0.52446089]
[1718297896502,0.35181432,66894.0,66893.0,0.28600926]
[1718297897320,0.35181432,66894.0,66893.0,0.52446089]
[1718297897693,0.35181432,66894.0,66893.0,0.50223375]
[1718297900371,0.35181432,66894.0,66893.0,0.50223393]
[1718297901236,0.35181432,66894.0,66893.0,0.43550144]
[1718297901671,0.35181432,66894.0,66893.0,0.52446107]
[1718297901885,0.35166779,66894.0,66893.0,0.52446107]
[1718297902097,0.35166779,66894.0,66893.0,0.43550144]
[1718297902777,0.35166779,66894.0,66893.0,0.43549365]
[1718297902981,0.35166779,66894.0,66893.0,0.52448299]
[1718297903815,0.35166779,66894.0,66893.0,0.43549365]
[1718297904029,0.35166779,66894.0,66893.0,0.52448299]
[1718297905058,0.35166779,66894.0,66893.0,0.52449263]
[1718297905515,0.35166779,66894.0,66893.0,0.52449535]
[1718297905667,0.35166779,66894.0,66893.0,0.54674238]
[1718297906289,0.35166779,66894.0,66893.0,0.54674193]
[1718297906755,0.35166779,66894.0,66893.0,0.4354932]
[1718297907808,0.35166779,66894.0,66893.0,0.52449063]
[1718297908089,0.05434997,66926.0,66911.0,0.448356]
[1718297908327,0.0095854,66926.0,66921.0,0.678208]
[1718297908564,0.0095854,66926.0,66921.0,1.15000932]
[1718297908565,1e-08,66922.0,66921.0,1.15000932]
[1718297908771,0.17990001,66922.0,66921.0,0.37180132]
[1718297908985,0.17990001,66922.0,66921.0,0.68776012]
[1718297909199,1e-08,66922.0,66921.0,0.67123032]
[1718297909403,1e-08,66922.0,66921.0,0.40576146]
[1718297909673,1e-08,66922.0,66921.0,0.658208]
[1718297909888,1e-08,66922.0,66921.0,0.69018764]
[1718297910104,1e-08,66922.0,66921.0,1.10786818]
[1718297910302,1e-08,66922.0,66921.0,1.17436684]
[1718297910975,1e-08,66922.0,66921.0,1.29106684]
[1718297911180,1e-08,66922.0,66921.0,1.22456818]
[1718297911379,1e-08,66922.0,66921.0,1.19456818]
[1718297911585,1e-08,66922.0,66921.0,1.22456818]
[1718297911793,1e-08,66922.0,66921.0,1.2688462]
[1718297912160,1e-08,66922.0,66921.0,0.9589487]
[1718297912484,1e-08,66922.0,66921.0,1.9580628]
[1718297912714,1e-08,66922.0,66921.0,2.32666074]
[1718297912938,1e-08,66941.0,66927.0,0.35732]
[1718297913198,0.02237391,66947.0,66946.0,0.768042]
[1718297913336,3.1e-07,66952.0,66951.0,1.532627]
[1718297913544,3.1e-07,66952.0,66951.0,1.19017535]
[1718297913745,3.1e-07,66952.0,66951.0,1.47210821]
[1718297913952,3.1e-07,66952.0,66951.0,1.77083321]
[1718297914159,3.1e-07,66952.0,66951.0,0.51168335]
[1718297914358,3.1e-07,66952.0,66951.0,0.88995915]
[1718297914931,3.1e-07,66952.0,66951.0,1.18868415]
[1718297915563,3.1e-07,66952.0,66951.0,1.14922828]
[1718297915982,3.1e-07,66952.0,66951.0,1.149618]
[1718297916173,3.1e-07,66952.0,66951.0,0.50307307]
[1718297916378,3.1e-07,66952.0,66951.0,1.11352307]
[1718297916588,3.1e-07,66952.0,66951.0,1.05012172]
[1718297916761,3.1e-07,66952.0,66951.0,1.03712172]
[1718297916916,3.1e-07,66952.0,66951.0,1.19544165]
[1718297917118,3.1e-07,66952.0,66951.0,1.08711665]
[1718297917345,3.1e-07,66952.0,66951.0,1.10011665]
[1718297917546,3.1e-07,66952.0,66951.0,1.40726232]
[1718297917954,3.1e-07,66952.0,66951.0,1.41726232]
[1718297918343,3.1e-07,66952.0,66951.0,1.71598732]
[1718297918735,3.1e-07,66952.0,66951.0,1.70298732]
[1718297918934,3.1e-07,66952.0,66951.0,1.09553732]
[1718297919165,0.43295979,66973.0,66960.0,0.149342]
[1718297919166,0.00899033,66961.0,66960.0,0.149342]
[1718297919315,0.00899033,66961.0,66960.0,0.259342]
[1718297919529,0.00899033,66961.0,66960.0,0.628027]
[1718297919732,0.00899033,66961.0,66960.0,0.657947]
[1718297919929,0.00899033,66961.0,66960.0,0.956632]
[1718297920188,0.00899033,66961.0,66960.0,0.657947]
[1718297920388,0.00899033,66961.0,66960.0,0.637947]
[1718297920651,0.00899033,66961.0,66960.0,0.896712]
[1718297920862,0.00899033,66961.0,66960.0,0.940712]
[1718297921065,0.00899033,66961.0,66960.0,0.926712]
[1718297921262,0.00899033,66961.0,66960.0,0.309342]
[1718297921466,0.00899033,66961.0,66960.0,0.299342]
[1718297921590,0.00899033,66961.0,66960.0,0.312342]
[1718297922222,0.00899033,66961.0,66960.0,0.299342]
[1718297922586,0.18989033,66961.0,66960.0,0.174]
[1718297922794,0.18989033,66961.0,66960.0,0.223342]
[1718297922926,0.18989033,66961.0,66960.0,0.309342]
[1718297923353,0.18989033,66961.0,66960.0,0.322342]
[1718297923599,0.18989033,66961.0,66960.0,0.309342]
[1718297923779,0.18989033,66961.0,66960.0,0.369068]
[1718297924152,0.18974302,66961.0,66960.0,0.369068]
[1718297924536,0.18974302,66961.0,66960.0,0.379068]
[1718297925159,0.18974302,66961.0,66960.0,0.369068]
[1718297925791,0.00884302,66961.0,66960.0,0.996438]
[1718297926008,0.00884302,66961.0,66960.0,0.407068]
[1718297926221,0.00884302,66961.0,66960.0,0.705753]
[1718297926816,0.00884302,66961.0,66960.0,0.994438]
[1718297927254,0.00884302,66961.0,66960.0,1.008438]
[1718297928560,0.00884302,66961.0,66960.0,1.307123]